bitfinex/quotes_BTCUSD_20250428
["timestamp","ask_amount","ask_price","bid_price","bid_amount"]
[1745810721842,0.54,93915.0,93914.0,0.0028482]
[1745810722375,0.54,93915.0,93914.0,0.0038482]
[1745810731460,0.2,93915.0,93914.0,0.0038482]
[1745810735895,0.2,93915.0,93914.0,0.11073834]
[1745810736303,0.2,93915.0,93914.0,0.11642189]
[1745810736924,0.2,93915.0,93914.0,0.11342189]
[1745810737135,0.2,93915.0,93914.0,0.11742189]
[1745810737522,0.2,93915.0,93914.0,0.11642189]
[1745810737749,0.2,93915.0,93914.0,0.11542189]
[1745810737901,0.2,93915.0,93914.0,0.11942189]
[1745810740998,0.21984957,93915.0,93914.0,0.11942189]
[1745810741239,0.21991313,93915.0,93914.0,0.11942189]
[1745810745048,0.21991313,93915.0,93914.0,0.01253175]
[1745810745368,0.26561313,93915.0,93914.0,0.01253175]
[1745810745914,0.26561313,93915.0,93914.0,0.00853175]
[1745810746796,0.26561313,93915.0,93914.0,0.00653175]
[1745810747112,0.26561313,93915.0,93914.0,0.00853175]
[1745810748210,0.06561313,93915.0,93914.0,0.00853175]
[1745810751099,0.26561313,93915.0,93914.0,0.00853175]
[1745810751547,0.31451313,93915.0,93914.0,0.0028482]
[1745810752687,0.34447025,93915.0,93914.0,0.0028482]
[1745810753120,0.34547025,93915.0,93914.0,0.0008482]
[1745810753336,0.31551313,93915.0,93914.0,0.0008482]
[1745810754006,0.65551313,93915.0,93914.0,0.0008482]
[1745810754247,0.68546863,93915.0,93914.0,0.0008482]
[1745810754451,0.65551313,93915.0,93914.0,0.0008482]
[1745810755638,0.72273176,93915.0,93914.0,0.0008482]
[1745810755842,0.75267987,93915.0,93914.0,0.0008482]
[1745810756275,0.68546124,93915.0,93914.0,0.0008482]
[1745810757471,0.65551313,93915.0,93914.0,0.0008482]
[1745810758178,0.60981313,93915.0,93914.0,0.0008482]
[1745810759904,0.56191313,93915.0,93914.0,0.0008482]
[1745810760529,0.541,93915.0,93914.0,0.0008482]
[1745810760709,0.542,93915.0,93914.0,0.0008482]
[1745810762102,0.201,93915.0,93914.0,0.10773834]
[1745810762302,0.002,93915.0,93914.0,0.12810605]
[1745810762472,0.002,93915.0,93914.0,0.12910605]
[1745810763100,0.002,93915.0,93914.0,0.13010605]
[1745810763328,0.001,93915.0,93914.0,0.13010605]
[1745810763806,0.02094395,93915.0,93914.0,0.13010605]
[1745810764007,0.02094395,93915.0,93914.0,0.13110605]
[1745810764186,0.02094395,93915.0,93914.0,0.13210605]
[1745810764803,0.02094395,93915.0,93914.0,0.13110605]
[1745810765124,0.001,93915.0,93914.0,0.13610605]
[1745810765546,0.001,93915.0,93914.0,0.13410605]
[1745810765755,0.001,93915.0,93914.0,0.13710605]
[1745810771341,0.01994395,93923.0,93915.0,0.01454085]
[1745810771570,0.01994395,93923.0,93916.0,0.10689014]
[1745810771799,0.01994395,93922.0,93916.0,0.11259641]
[1745810772147,0.01994395,93921.0,93916.0,0.11259641]
[1745810772575,0.01994395,93920.0,93916.0,0.11259641]
[1745810772799,0.01994395,93920.0,93916.0,0.00570627]
[1745810772956,0.01994395,93919.0,93916.0,0.00570627]
[1745810773453,0.01994395,93918.0,93916.0,0.00570627]
[1745810773883,0.01994395,93918.0,93914.0,0.0008482]
[1745810774081,0.01994395,93917.0,93916.0,0.001]
[1745810774281,0.01994395,93917.0,93916.0,0.0066523]
[1745810774459,0.01994395,93917.0,93916.0,0.0056523]
[1745810774857,0.01994395,93917.0,93916.0,0.001]
[1745810775056,0.01994395,93917.0,93916.0,0.0066523]
[1745810776708,0.01994395,93917.0,93916.0,0.0056523]
[1745810776897,0.01994395,93917.0,93914.0,0.0008482]
[1745810777109,0.01994395,93917.0,93916.0,0.002]
[1745810777314,0.01994395,93917.0,93916.0,0.0076523]
[1745810778042,0.01994395,93917.0,93916.0,0.11254244]
[1745810780557,0.01994395,93917.0,93916.0,0.11454244]
[1745810784040,0.01994395,93917.0,93916.0,0.12908329]
[1745810785579,0.01994395,93917.0,93916.0,0.13221279]
[1745810785767,0.01994395,93917.0,93916.0,0.18211251]
[1745810785996,0.01994395,93917.0,93916.0,0.18211239]
[1745810786203,0.01994395,93936.0,93918.0,0.01454085]
[1745810786488,0.01994395,93936.0,93931.0,0.12143099]
[1745810786692,0.01994395,93936.0,93933.0,0.01454085]
[1745810786942,0.00013681,93937.0,93935.0,0.01454085]
[1745810787150,0.00013681,93937.0,93936.0,0.12355987]
[1745810787357,0.02007626,93937.0,93936.0,0.12934984]
[1745810787789,0.02007626,93937.0,93936.0,0.12722096]
[1745810788367,0.02007626,93937.0,93936.0,0.13222096]
[1745810788564,0.02007626,93937.0,93936.0,0.14020797]
[1745810788717,0.00013681,93937.0,93936.0,0.14020797]
[1745810788921,0.00013681,93937.0,93936.0,0.18790797]
[1745810789123,0.00013681,93937.0,93936.0,0.19190797]
[1745810794385,0.00013681,93937.0,93936.0,0.14420797]
[1745810794746,0.00013681,93937.0,93936.0,0.23661672]
[1745810794945,0.00013681,93937.0,93936.0,0.23448797]
[1745810796393,0.00013681,93937.0,93936.0,0.22948797]
[1745810796815,0.00013681,93937.0,93936.0,0.23248797]
[1745810796971,0.00013681,93937.0,93936.0,0.22848797]
[1745810797165,0.00013681,93937.0,93936.0,0.23048797]
[1745810799421,0.00013681,93937.0,93936.0,0.01877698]
[1745810799771,0.00013681,93937.0,93936.0,0.01298701]
[1745810799996,0.02001741,93937.0,93936.0,0.00798701]
[1745810800130,0.02001741,93937.0,93936.0,0.01341765]
[1745810800338,0.02001741,93937.0,93936.0,0.00843064]
[1745810800857,0.02101741,93937.0,93936.0,0.00643064]
[1745810801208,0.02101741,93937.0,93936.0,0.001]
[1745810801531,0.02101741,93937.0,93936.0,0.00897352]
[1745810804523,0.02101741,93937.0,93936.0,0.001]
[1745810809386,0.02055186,93937.0,93936.0,0.001]
[1745810814235,0.02055186,93937.0,93936.0,0.10789014]
[1745810814645,0.02055186,93937.0,93936.0,0.11340364]
[1745810815481,0.02055186,93937.0,93936.0,0.11440364]
[1745810816506,0.01955186,93937.0,93936.0,0.11340364]
[1745810817053,0.02055186,93937.0,93936.0,0.11340364]
[1745810817249,0.01955186,93937.0,93936.0,0.11340364]
[1745810817644,0.01955186,93937.0,93936.0,0.11240364]
[1745810818011,0.01955186,93937.0,93936.0,0.11340364]
[1745810825071,0.01955186,93937.0,93936.0,0.12794449]
[1745810825469,0.01955186,93937.0,93936.0,0.17544449]
[1745810829235,0.01955186,93937.0,93936.0,0.26572449]
[1745810830424,0.2,93941.0,93937.0,0.01454085]
[1745810830619,0.20009712,93941.0,93938.0,0.10689014]
[1745810830888,0.01995958,93940.0,93938.0,0.11233438]
[1745810831221,0.01995958,93939.0,93938.0,0.11233438]
[1745810831855,0.01995958,93939.0,93938.0,0.12687523]
[1745810834137,0.01995958,93939.0,93938.0,0.12787523]
[1745810836783,0.01995958,93939.0,93938.0,0.11333438]
[1745810836931,0.26585958,93939.0,93938.0,0.00644424]
[1745810837098,0.26585958,93939.0,93938.0,0.001]
[1745810837328,0.26585958,93939.0,93938.0,0.00550121]
[1745810837529,0.26585958,93939.0,93938.0,0.001]
[1745810837973,0.26585958,93939.0,93938.0,0.00550121]
[1745810838177,0.25785498,93939.0,93938.0,0.00550121]
[1745810839730,0.64465498,93939.0,93938.0,0.00550121]
[1745810840109,0.64465498,93939.0,93938.0,0.001]
[1745810840511,0.2458,93926.0,93925.0,0.09024]
[1745810840923,0.2922,93926.0,93925.0,0.09024]
[1745810841298,0.2922,93926.0,93925.0,0.09817929]
[1745810842385,0.34,93925.0,93918.0,0.04965181]
[1745810842590,0.0475,93921.0,93918.0,0.04965181]
[1745810843188,0.0975,93919.0,93918.0,0.04965181]
[1745810843329,0.4839,93919.0,93918.0,0.04965181]
[1745810843728,0.59079014,93919.0,93918.0,0.04965181]
[1745810843926,0.54,93915.0,93914.0,0.0008482]
[1745810844131,0.5875,93915.0,93914.0,0.0008482]
[1745810846471,0.5875,93915.0,93914.0,0.0018482]
[1745810850239,0.60736599,93915.0,93914.0,0.0018482]
[1745810857060,0.5875,93915.0,93914.0,0.0018482]
[1745810857883,0.49439014,93915.0,93914.0,0.0018482]
[1745810858057,0.3875,93915.0,93914.0,0.0018482]
[1745810858659,0.40736599,93915.0,93914.0,0.0018482]
[1745810858862,0.3875,93915.0,93914.0,0.0018482]
[1745810863263,0.40737143,93915.0,93914.0,0.0018482]
[1745810864236,0.49880857,93915.0,93914.0,0.0018482]
[1745810864445,0.40737143,93915.0,93914.0,0.0018482]
[1745810866241,0.60737143,93915.0,93914.0,0.0018482]
[1745810866616,0.5875,93915.0,93914.0,0.0018482]
[1745810877260,0.61748284,93915.0,93914.0,0.0018482]
[1745810878119,0.56998284,93915.0,93914.0,0.0018482]
[1745810879759,0.2,93915.0,93914.0,0.0018482]
[1745810879971,0.4106,93917.0,93914.0,0.15383834]
[1745810880170,0.2,93925.0,93915.0,0.12143099]
[1745810880363,0.34,93924.0,93915.0,0.12563692]
[1745810881245,0.2,93925.0,93915.0,0.12563692]
[1745810881856,0.35998687,93924.0,93915.0,0.12663692]
[1745810882069,0.001,93917.0,93915.0,0.12663692]
[1745810882794,0.01998687,93916.0,93915.0,0.12663692]
[1745810883536,0.01998687,93916.0,93915.0,0.12763692]
[1745810883783,0.01998687,93916.0,93915.0,0.12663692]
[1745810884016,0.01998687,93916.0,93915.0,0.12763692]
[1745810884651,0.01998687,93916.0,93915.0,0.17243692]
[1745810884927,0.2,93925.0,93915.0,0.17543692]
[1745810885389,0.2,93925.0,93915.0,0.17443692]
[1745810885682,0.2,93925.0,93915.0,0.17643692]
[1745810886847,0.2,93925.0,93915.0,0.17343692]
[1745810887051,0.2,93925.0,93915.0,0.17443692]
[1745810887973,0.2,93925.0,93915.0,0.17143692]
[1745810888398,0.2,93925.0,93915.0,0.17343692]
[1745810888575,0.2,93925.0,93915.0,0.17443692]
[1745810893773,0.2,93925.0,93917.0,0.01454085]
[1745810893966,0.2,93925.0,93919.0,0.01454085]
[1745810894209,0.2,93925.0,93920.0,0.11089431]
[1745810894979,0.2,93925.0,93923.0,0.01454085]
[1745810895184,0.01990578,93935.0,93925.0,0.01454085]
[1745810895390,0.01990578,93935.0,93927.0,0.01454085]
[1745810895588,0.01990578,93935.0,93929.0,0.06324085]
[1745810895793,0.01990578,93940.0,93933.0,0.01454085]
[1745810895997,0.01990578,93940.0,93935.0,0.06324085]
[1745810896196,0.22,93948.0,93937.0,0.01454085]
[1745810896394,0.22,93948.0,93939.0,0.01454085]
[1745810896616,0.22,93948.0,93940.0,0.1254594]
[1745810898025,0.22,93948.0,93940.0,0.1264594]
[1745810904157,0.34,93947.0,93940.0,0.00502841]
[1745810904370,0.04939712,93941.0,93940.0,0.00502841]
[1745810904589,0.04939712,93941.0,93940.0,0.001]
[1745810904990,0.09749712,93941.0,93940.0,0.001]
[1745810905630,0.09749712,93941.0,93927.0,0.0080866]
[1745810905631,0.2,93928.0,93927.0,0.0080866]
[1745810905833,0.2,93928.0,93923.0,0.001]
[1745810906109,0.2,93928.0,93923.0,0.10789014]
[1745810907366,0.2,93928.0,93923.0,0.10889014]
[1745810908581,0.2,93928.0,93923.0,0.10989014]
[1745810909726,0.2,93928.0,93923.0,0.003]
[1745810910835,0.2,93928.0,93923.0,0.10989014]
[1745810913114,0.2,93928.0,93924.0,0.12143099]
[1745810913311,0.05039712,93941.0,93924.0,0.12143099]
[1745810913312,0.34,93938.0,93924.0,0.16643099]
[1745810913853,0.2,93939.0,93924.0,0.16643099]
[1745810915057,0.001,93938.0,93926.0,0.01454085]
[1745810915354,0.001,93938.0,93928.0,0.01454085]
[1745810915567,0.001,93938.0,93930.0,0.01454085]
[1745810915762,0.001,93938.0,93932.0,0.01454085]
[1745810915943,0.201,93939.0,93933.0,0.10689014]
[1745810916139,0.001,93938.0,93933.0,0.10689014]
[1745810916563,0.002,93938.0,93933.0,0.10689014]
[1745810916768,0.003,93938.0,93933.0,0.10689014]
[1745810917819,0.2,93939.0,93933.0,0.10689014]
[1745810918257,0.2,93939.0,93933.0,0.10789014]
[1745810918758,0.2,93939.0,93933.0,0.10689014]
[1745810920970,0.00109712,93941.0,93934.0,0.01454085]
[1745810921196,0.00109712,93941.0,93936.0,0.01454085]
[1745810921514,0.00109712,93941.0,93937.0,0.10689014]
[1745810922871,0.00109712,93941.0,93937.0,0.11289014]
[1745810923627,0.00109712,93941.0,93938.0,0.0902]
[1745810923825,0.00109712,93941.0,93940.0,0.01454085]
[1745810924177,0.00109712,93941.0,93940.0,0.12143099]
[1745810924967,0.00109712,93941.0,93940.0,0.12443099]
[1745810925504,0.00109712,93941.0,93940.0,0.12743099]
[1745810932811,0.00109712,93941.0,93940.0,0.21763099]
[1745810937077,0.00109712,93941.0,93940.0,0.12743099]
[1745810946489,0.00109712,93941.0,93940.0,0.11289014]
[1745810946693,0.00109712,93941.0,93940.0,0.006]
[1745810946901,0.04829712,93941.0,93940.0,0.006]
[1745810947642,0.04829712,93941.0,93940.0,0.003]
[1745810947843,0.04829712,93941.0,93940.0,0.001]
[1745810948019,0.04829712,93941.0,93940.0,0.002]
[1745810948187,0.09589712,93941.0,93940.0,0.002]
[1745810950407,0.43689712,93941.0,93940.0,0.002]
[1745810951062,0.43689712,93941.0,93940.0,0.001]
[1745810951257,0.2,93933.0,93932.0,0.0902]
[1745810952314,0.2,93933.0,93927.0,0.00793533]
[1745810952519,0.2,93933.0,93928.0,0.10689014]
[1745810952936,0.2,93933.0,93929.0,0.01454085]
[1745810953136,0.04869712,93941.0,93931.0,0.01454085]
[1745810953331,0.00109712,93941.0,93932.0,0.10789014]
[1745810953543,9.712e-05,93941.0,93933.0,0.01454085]
[1745810953759,9.712e-05,93941.0,93935.0,0.01454085]
[1745810953925,9.712e-05,93941.0,93936.0,0.10689014]
[1745810956306,0.2,93934.0,93932.0,0.0922]
[1745810956685,0.2,93934.0,93932.0,0.002]
[1745810957109,0.2,93934.0,93927.0,0.00796406]
[1745810957279,0.2,93934.0,93928.0,0.10689014]
[1745810957492,0.2,93934.0,93932.0,0.001]
[1745810958072,0.2,93934.0,93928.0,0.10689014]
[1745810958502,0.2,93934.0,93928.0,0.10789014]
[1745810959706,0.2,93934.0,93929.0,0.01454085]
[1745810959951,0.2,93934.0,93932.0,0.001]
[1745810960151,0.2,93934.0,93933.0,0.10689014]
[1745810961552,0.2,93934.0,93933.0,0.10789014]
[1745810962539,0.2,93934.0,93933.0,0.10889014]
[1745810965118,0.2,93934.0,93933.0,0.002]
[1745810965283,0.2476,93934.0,93933.0,0.002]
[1745810965942,0.5876,93934.0,93933.0,0.002]
[1745810966313,0.5876,93934.0,93927.0,0.00796406]
[1745810966314,0.34,93933.0,93927.0,0.00796406]
[1745810966918,0.34,93933.0,93928.0,0.10689014]
[1745810968746,0.2,93934.0,93928.0,0.10689014]
[1745810969445,0.2,93934.0,93928.0,0.10789014]
[1745810970160,0.2,93934.0,93928.0,0.10889014]
[1745810971524,0.2,93934.0,93929.0,0.01454085]
[1745810971758,9.712e-05,93941.0,93931.0,0.01454085]
[1745810971925,9.712e-05,93941.0,93933.0,0.01454085]
[1745810972138,9.712e-05,93941.0,93935.0,0.01454085]
[1745810972353,9.712e-05,93941.0,93937.0,0.01454085]
[1745810972546,9.712e-05,93941.0,93939.0,0.01454085]
[1745810972780,9.712e-05,93941.0,93940.0,0.12355976]
[1745810972979,0.00109712,93941.0,93940.0,0.14336742]
[1745810973150,0.00109712,93941.0,93940.0,0.15114031]
[1745810973775,9.712e-05,93941.0,93940.0,0.15114031]
[1745810975004,9.712e-05,93941.0,93940.0,0.15514031]
[1745810975620,9.712e-05,93941.0,93940.0,0.1306978]
[1745810975818,9.712e-05,93941.0,93940.0,0.11089014]
[1745810976245,9.712e-05,93941.0,93940.0,0.11489014]
[1745810981912,0.40680683,93941.0,93940.0,0.008]
[1745810982082,0.38679712,93941.0,93940.0,0.008]
[1745810982399,0.43479712,93941.0,93940.0,0.008]
[1745810982795,0.2937,93925.0,93924.0,0.04990642]
[1745810985428,0.2937,93925.0,93924.0,0.05290642]
[1745810986682,0.2937,93925.0,93924.0,0.003]
[1745810987272,0.66307,93925.0,93924.0,0.003]
[1745810987802,1.07367,93925.0,93924.0,0.003]
[1745810988360,1.10359387,93925.0,93924.0,0.003]
[1745810988579,0.54,93915.0,93901.0,0.06487835]
[1745810988787,1.20479014,93915.0,93901.0,0.06487835]
[1745810989584,1.20479014,93915.0,93899.0,0.09284]
[1745810991422,1.20479014,93915.0,93914.0,0.0038482]
[1745810991616,1.20579014,93915.0,93914.0,0.0038482]
[1745810991821,1.20579014,93915.0,93914.0,0.0008482]
[1745810992451,1.0448,93915.0,93914.0,0.0008482]
[1745811000298,0.9986,93915.0,93914.0,0.0008482]
[1745811000544,0.9516,93915.0,93914.0,0.0008482]
[1745811001538,0.9506,93915.0,93914.0,0.0008482]
[1745811001753,0.9506,93915.0,93914.0,0.0018482]
[1745811002844,0.9506,93915.0,93914.0,0.0017547]
[1745811006290,0.54,93915.0,93914.0,0.0017547]
[1745811015715,0.63506,93915.0,93914.0,0.0017547]
[1745811016636,0.54,93915.0,93914.0,0.0017547]
[1745811023282,0.2,93915.0,93914.0,0.0027547]
[1745811023429,0.2,93926.0,93914.0,0.17667446]
[1745811023633,0.34,93925.0,93915.0,0.12356044]
[1745811023919,0.2,93926.0,93915.0,0.12775015]
[1745811024227,0.2,93937.0,93916.0,0.045]
[1745811024422,0.2,93937.0,93918.0,0.06324085]
[1745811024708,0.2,93937.0,93920.0,0.01454085]
[1745811024709,0.34,93936.0,93920.0,0.01454085]
[1745811024944,0.2,93937.0,93922.0,0.06294085]
[1745811025153,0.2,93937.0,93924.0,0.01454085]
[1745811025372,0.34,93936.0,93926.0,0.01454085]
[1745811025585,0.34,93936.0,93927.0,0.10689014]
[1745811025803,0.34,93936.0,93927.0,0.11316428]
[1745811027198,0.34,93936.0,93927.0,0.11616428]
[1745811027411,0.34,93936.0,93928.0,0.01454085]
[1745811027614,0.34,93936.0,93930.0,0.01454085]
[1745811027761,0.34,93936.0,93931.0,0.10689014]
[1745811028147,0.34,93936.0,93932.0,0.00414455]
[1745811028348,0.34,93936.0,93933.0,0.10689014]
[1745811029565,0.2,93948.0,93934.0,0.01454085]
[1745811029793,0.4106,93950.0,93936.0,0.01454085]
[1745811030133,0.2,93959.0,93938.0,0.01454085]
[1745811030266,0.2,93959.0,93935.0,0.0482]
[1745811030267,0.2,93959.0,93940.0,0.01454085]
[1745811030474,0.34,93958.0,93940.0,0.12143099]
[1745811031306,0.34,93958.0,93940.0,0.12355966]
[1745811031807,0.34,93958.0,93940.0,0.12555966]
[1745811032013,0.34,93958.0,93940.0,0.12355966]
[1745811032398,0.34,93958.0,93940.0,0.13055966]
[1745811032814,0.34,93958.0,93940.0,0.12855966]
[1745811033264,0.34,93958.0,93940.0,0.13455966]
[1745811033465,0.34,93949.0,93940.0,0.13455966]
[1745811034622,0.34,93949.0,93940.0,0.22675966]
[1745811034844,0.34,93949.0,93940.0,0.22463099]
[1745811035048,0.34,93949.0,93940.0,0.23255057]
[1745811036643,0.34,93949.0,93940.0,0.12580972]
[1745811036857,0.54,93949.0,93940.0,0.12580972]
[1745811037186,0.0473,93945.0,93940.0,0.011]
[1745811037350,0.00212913,93944.0,93940.0,0.011]
[1745811038143,0.2,93919.0,93904.0,0.0476]
[1745811038344,0.2,93919.0,93915.0,0.10689014]
[1745811038932,0.34,93918.0,93915.0,0.11474226]
[1745811039131,0.35062926,93918.0,93914.0,0.0939547]
[1745811039335,0.35062926,93918.0,93914.0,0.10864484]
[1745811039538,0.00212913,93917.0,93914.0,0.0017547]
[1745811039764,0.00212913,93917.0,93914.0,0.0027547]
[1745811040178,0.00212913,93917.0,93915.0,0.003]
[1745811040593,0.00212913,93917.0,93914.0,0.0027547]
[1745811041224,0.00212913,93917.0,93914.0,0.0017547]
[1745811041485,0.34,93918.0,93915.0,0.10689014]
[1745811043105,0.34,93918.0,93915.0,0.10889014]
[1745811043492,0.34,93918.0,93915.0,0.10989014]
[1745811045404,0.34,93918.0,93915.0,0.003]
[1745811045749,0.00212913,93917.0,93915.0,0.003]
[1745811046772,0.00212913,93917.0,93915.0,0.002]
[1745811047123,0.00212913,93917.0,93915.0,0.003]
[1745811048021,0.00212913,93917.0,93915.0,0.001]
[1745811048241,0.00212913,93917.0,93915.0,0.003]
[1745811048977,0.04973169,93917.0,93915.0,0.003]
[1745811049421,0.00212913,93917.0,93915.0,0.003]
[1745811049632,0.0463,93916.0,93915.0,0.003]
[1745811050776,0.0463,93916.0,93915.0,0.002]
[1745811051181,0.0463,93916.0,93914.0,0.0017547]
[1745811051402,0.00212913,93915.0,93914.0,0.0017547]
[1745811054325,0.34,93918.0,93914.0,0.0017547]
[1745811054592,0.34,93918.0,93914.0,0.10864484]
[1745811054822,0.34,93918.0,93915.0,0.10689014]
[1745811056198,0.34,93918.0,93915.0,0.10989014]
[1745811056638,0.34,93918.0,93915.0,0.11289014]
[1745811059415,0.2,93919.0,93915.0,0.11289014]
[1745811059850,0.34,93918.0,93915.0,0.11289014]
[1745811060487,0.34,93918.0,93915.0,0.10989014]
[1745811060891,0.34,93918.0,93915.0,0.11289014]
[1745811061501,0.34,93918.0,93915.0,0.10989014]
[1745811061761,0.34,93918.0,93915.0,0.11289014]
[1745811061996,0.34,93918.0,93915.0,0.10989014]
[1745811062221,0.34,93918.0,93915.0,0.11289014]
[1745811066845,0.20109712,93941.0,93917.0,0.0451]
[1745811067186,0.20109712,93941.0,93924.0,0.05964085]
[1745811067187,0.34,93939.0,93924.0,0.05964085]
[1745811067319,0.18879153,93940.0,93925.0,0.1090191]
[1745811067530,0.18879153,93940.0,93927.0,0.01454085]
[1745811067736,0.18879153,93940.0,93928.0,0.10901909]
[1745811067942,0.00109712,93941.0,93929.0,0.01454085]
[1745811068151,0.00109712,93941.0,93930.0,0.12885207]
[1745811068332,0.00109712,93941.0,93935.0,0.01454085]
[1745811068539,0.00109712,93941.0,93931.0,0.02974975]
[1745811068540,0.00109712,93941.0,93940.0,0.12143099]
[1745811068741,0.00109712,93941.0,93940.0,0.12355949]
[1745811068939,0.00109712,93941.0,93940.0,0.13347609]
[1745811069139,0.00109712,93941.0,93940.0,0.15330549]
[1745811069955,0.00109712,93941.0,93940.0,0.13847609]
[1745811070163,0.00109712,93941.0,93940.0,0.13847627]
[1745811070363,0.00109712,93941.0,93940.0,0.12855967]
[1745811070577,0.00109712,93941.0,93940.0,0.22667967]
[1745811070781,0.00109712,93941.0,93940.0,0.22455099]
[1745811071449,9.712e-05,93941.0,93940.0,0.22455099]
[1745811076047,9.712e-05,93941.0,93940.0,0.21855099]
[1745811076245,9.712e-05,93941.0,93940.0,0.21355099]
[1745811076682,9.712e-05,93941.0,93940.0,0.22255099]
[1745811077262,9.712e-05,93941.0,93940.0,0.21755099]
[1745811077461,9.712e-05,93941.0,93940.0,0.22355099]
[1745811078327,9.712e-05,93941.0,93940.0,0.27305099]
[1745811078861,9.712e-05,93941.0,93940.0,0.26905099]
[1745811079285,9.712e-05,93941.0,93940.0,0.27405099]
[1745811081235,9.712e-05,93941.0,93940.0,0.27505099]
[1745811084137,9.712e-05,93941.0,93940.0,0.22555099]
[1745811084558,9.712e-05,93941.0,93940.0,0.22563099]
[1745811085647,9.712e-05,93941.0,93940.0,0.32393099]
[1745811086272,9.712e-05,93941.0,93940.0,0.33380715]
[1745811086491,9.712e-05,93941.0,93940.0,0.32280715]
[1745811086907,9.712e-05,93941.0,93940.0,0.33880715]
[1745811087123,9.712e-05,93941.0,93940.0,0.35155749]
[1745811087358,9.712e-05,93941.0,93940.0,0.34955749]
[1745811087794,9.712e-05,93941.0,93940.0,0.25735749]
[1745811088014,9.712e-05,93941.0,93940.0,0.30115749]
[1745811088236,9.712e-05,93941.0,93940.0,0.28140715]
[1745811088651,9.712e-05,93941.0,93940.0,0.28153099]
[1745811088856,9.712e-05,93941.0,93940.0,0.28653099]
[1745811089272,9.712e-05,93941.0,93940.0,0.27453099]
[1745811089574,9.712e-05,93941.0,93940.0,0.27053099]
[1745811089784,9.712e-05,93941.0,93940.0,0.28153099]
[1745811090865,9.712e-05,93941.0,93940.0,0.31118014]
[1745811091693,9.712e-05,93941.0,93940.0,0.35698014]
[1745811094187,9.712e-05,93941.0,93940.0,0.26478014]
[1745811094395,9.712e-05,93941.0,93940.0,0.35698014]
[1745811097185,9.712e-05,93941.0,93940.0,1.32063359]
[1745811099253,9.712e-05,93941.0,93940.0,1.10673174]
[1745811099475,9.712e-05,93941.0,93940.0,1.10773174]
[1745811099626,9.712e-05,93941.0,93940.0,1.01453174]
[1745811099829,9.712e-05,93941.0,93940.0,1.10673174]
[1745811100673,0.0004243,93955.0,93942.0,0.01454085]
[1745811100891,0.00047001,93953.0,93952.0,0.12143099]
[1745811101330,0.00047001,93953.0,93952.0,0.21359099]
[1745811101562,0.00047001,93953.0,93952.0,0.23548502]
[1745811101784,0.00047001,93953.0,93952.0,0.23335681]
[1745811102190,0.00047001,93953.0,93952.0,0.24324014]
[1745811102632,0.00047001,93953.0,93952.0,0.15108014]
[1745811102847,0.00047001,93953.0,93952.0,0.25124014]
[1745811103170,0.00047001,93953.0,93952.0,0.15419681]
[1745811103409,0.00047001,93953.0,93952.0,0.24635681]
[1745811103644,0.00047001,93953.0,93952.0,0.24135681]
[1745811103849,0.00047001,93953.0,93952.0,0.13465596]
[1745811104063,0.00047001,93953.0,93952.0,0.22181596]
[1745811104277,0.00147001,93953.0,93952.0,0.12965596]
[1745811104480,0.04677001,93953.0,93952.0,0.11489014]
[1745811104964,0.04677001,93953.0,93952.0,0.10989014]
[1745811105422,0.04677001,93953.0,93952.0,0.11389014]
[1745811105863,0.04677001,93953.0,93952.0,0.003]
[1745811106331,0.04677001,93953.0,93952.0,0.001]
[1745811106995,0.04677001,93953.0,93952.0,0.002]
[1745811107202,0.04677001,93953.0,93952.0,0.001]
[1745811107565,0.04777001,93953.0,93952.0,0.001]
[1745811107984,0.04777001,93953.0,93944.0,0.09284]
[1745811108300,0.04777001,93953.0,93946.0,0.01454085]
[1745811108532,0.04777001,93953.0,93948.0,0.01454085]
[1745811108735,0.04777001,93953.0,93950.0,0.01454085]
[1745811108936,0.04777001,93953.0,93951.0,0.10689014]
[1745811109160,0.04677001,93953.0,93951.0,0.10689014]
[1745811109492,0.04877001,93953.0,93951.0,0.10689014]
[1745811109693,0.04677001,93953.0,93951.0,0.10689014]
[1745811110037,0.04677001,93953.0,93951.0,0.10789014]
[1745811112233,0.04677001,93953.0,93951.0,0.11089014]
[1745811112946,0.04664403,93953.0,93951.0,0.11089014]
[1745811114986,0.04664403,93953.0,93951.0,0.20377014]
[1745811117681,0.00134403,93953.0,93952.0,0.01454085]
[1745811117858,0.00134403,93953.0,93952.0,0.12143099]
[1745811118847,0.00134403,93953.0,93952.0,0.12655954]
[1745811119694,0.00134403,93953.0,93952.0,0.12755954]
[1745811120491,0.00134403,93953.0,93952.0,0.12655954]
[1745811120694,0.00134403,93953.0,93952.0,0.12855954]
[1745811121649,0.00134403,93953.0,93952.0,0.12555954]
[1745811121879,0.00134403,93953.0,93952.0,0.12955954]
[1745811122083,0.00134403,93953.0,93952.0,0.12755954]
[1745811122266,0.00134403,93953.0,93952.0,0.13055954]
[1745811122501,0.00134403,93953.0,93952.0,0.12655954]
[1745811122713,0.00134403,93953.0,93952.0,0.13255954]
[1745811123130,0.00134403,93953.0,93952.0,0.12355954]
[1745811123542,0.00134403,93953.0,93952.0,0.22543954]
[1745811123741,0.00134403,93953.0,93952.0,0.22331099]
[1745811124249,0.00134403,93953.0,93952.0,0.22031099]
[1745811124729,0.00134403,93953.0,93952.0,0.21431099]
[1745811124929,0.00134403,93953.0,93952.0,0.22343925]
[1745811125074,0.00134403,93953.0,93952.0,0.22131099]
[1745811125503,0.00134403,93953.0,93952.0,0.21931099]
[1745811125702,0.00134403,93953.0,93952.0,0.22731099]
[1745811126598,0.00134403,93953.0,93952.0,0.22531099]
[1745811126873,0.00134403,93953.0,93952.0,0.21431099]
[1745811126989,0.00134403,93953.0,93952.0,0.22724107]
[1745811127222,0.00134403,93953.0,93952.0,0.23111292]
[1745811128035,0.00134403,93953.0,93952.0,0.24011292]
[1745811130228,0.00134403,93953.0,93952.0,0.22931099]
[1745811131103,0.00134403,93953.0,93952.0,0.22031099]
[1745811131307,0.00034403,93953.0,93952.0,0.22031099]
[1745811131514,0.00034403,93953.0,93952.0,0.22831099]
[1745811131668,0.00034403,93953.0,93952.0,0.13543099]
[1745811131899,0.00034403,93953.0,93952.0,0.2163991]
[1745811132114,0.00034403,93953.0,93952.0,0.2313991]
[1745811132329,0.00034403,93953.0,93952.0,0.22927099]
[1745811132489,0.00034403,93953.0,93952.0,0.22327099]
[1745811132869,0.00034403,93953.0,93952.0,0.22927099]
[1745811137387,0.00034403,93953.0,93952.0,0.44314564]
[1745811137593,0.00034403,93953.0,93952.0,0.48884564]